{"text_format":"1","workbook":"xlsx","n_sheets":19,"sheets":["Afgánský chrt","Azavak","Barzoj","Italský chrtík","saluki","sloughi","Španělský galgo","whippet","basenji","Faraonský pes","Ibizský podenco","Kanárský podenco","sicilský chrt","dlouhosrstý vipet","Deerhound","Greyhound","Irský vlkodav","Polský chrt","Maďarský chrt"],"not_rendered":{"charts":0,"images":0,"macros":0,"external_links":0,"defined_names":1,"comments":0,"pivot_tables":0},"unopened":[],"bounds":{"document_bytes":16777216,"sheet_cells":100000,"rows_first":2000,"rows_last":500,"rows_between":2000,"halvings":0,"cell_chars":16384,"cell_head_chars":4096},"cells_cut":0,"cells_raw":0,"read":"whole","date_system":"1900"}

{"sheet":"Afgánský chrt","index":0,"n_rows":15,"n_cols":18,"rows_kept":15,"cut":false,"hidden":false,"merged":[[0,15,2,15],[0,16,2,16],[0,17,2,17]]}
[null,null,null,"19.4.","26.4.","1.5.","10.5.","28.6.","5.7.","13.7.","2.8.","30.8.","13.9.","4.10.","18.10.","součet","body započítávané do soutěže","počet závodů"]
["AFGÁNSKÝ CHRT",null,null,"Kolín","Lednice","Lednice","Kolín","Lednice","Lednice","Kolín","Kolín","Kolín","Lednice","Kolín","Lednice"]
["jméno psa","země","majitel",1,2,3,4,5,6,7,8,9,10,11,12]
["FENA"]
["Elara Maalum Uzuri","CZ","Kubínová",null,null,1,1,null,null,null,null,null,null,null,null,{"$f":"SUM(D5:O5)","v":2},null,{"$f":"COUNT(D5:O5)","v":2}]
["Felicia z Allahovy země","CZ","Ptáčková ",null,1,null,null,null,null,null,null,null,null,null,null,{"$f":"SUM(D6:O6)","v":1}," ",{"$f":"COUNT(D6:O6)","v":1}]
["Agnes Kvítek z Chrpových luk","CZ","Svobodová",null,null,null,null,null,null,null,null,null,null,null,null,{"$f":"SUM(D7:O7)","v":0}," ",{"$f":"COUNT(D7:O7)","v":0}]
[]
[]
["PES"]
["Rituál ze Zličinských luk","CZ","Eliášová",null,3,null,4,null,null,null,null,null,null,null,null,{"$f":"SUM(D11:O11)","v":7},null,{"$f":"COUNT(D11:O11)","v":2}]
["Flavio z Náhorní planiny","CZ","Kubínová",1,null,2,3,null,null,null,null,null,null,null,null,{"$f":"SUM(D12:O12)","v":6},null,{"$f":"COUNT(D12:O12)","v":3}]
["Alan Delon Ahtiar Ak Jar","CZ","Havlicová",null,null,null,2,null,null,null,null,null,null,null,null,{"$f":"SUM(D13:O13)","v":2}," ",{"$f":"COUNT(D13:O13)","v":1}]
["Eyken z Allahovy země","CZ","Ptáčková ",null,"MWDR",null,null,null,null,null,null,null,null,null,null,{"$f":"SUM(D14:O14)","v":0}," ",{"$f":"COUNT(D14:O14)","v":0}]
[null,null,null,null,null,null,null,null,null,null,null,null,null,null,null,{"$f":"SUM(D15:O15)","v":0}," ",{"$f":"COUNT(D15:O15)","v":0}]

{"sheet":"Azavak","index":1,"n_rows":21,"n_cols":18,"rows_kept":21,"cut":false,"hidden":false,"merged":[[0,15,2,15],[0,16,2,16],[0,17,2,17]]}
[null,null,null,"19.4.","26.4.","1.5.","10.5.","28.6.","5.7.","13.7.","2.8.","30.8.","13.9.","4.10.","18.10.","součet","body započítávané do soutěže","počet závodů"]
["AZAVAK",null,null,"Kolín","Lednice","Lednice","Kolín","Lednice","Lednice","Kolín","Kolín","Kolín","Lednice","Kolín","Lednice"]
["jméno psa","země","majitel",1,2,3,4,5,6,7,8,9,10,11,12]
["PES"]
[null,null,null,null,null,null,null,null,null,null,null,null,null,null,null,{"$f":"SUM(D5:O5)","v":0}," ",{"$f":"COUNT(D5:O5)","v":0}]
[null,null,null,null,null,null,null,null,null,null,null,null,null,null,null,{"$f":"SUM(D6:O6)","v":0}," ",{"$f":"COUNT(D6:O6)","v":0}]
[null,null,null,null,null,null,null,null,null,null,null,null,null,null,null,{"$f":"SUM(D7:O7)","v":0}," ",{"$f":"COUNT(D7:O7)","v":0}]
[null,null,null,null,null,null,null,null,null,null,null,null,null,null,null,{"$f":"SUM(D8:O8)","v":0}," ",{"$f":"COUNT(D8:O8)","v":0}]
[null,null,null,null,null,null,null,null,null,null,null,null,null,null,null,{"$f":"SUM(D9:O9)","v":0}," ",{"$f":"COUNT(D9:O9)","v":0}]
[]
["FENA"]
[null,null,null,null,null,null,null,null,null,null,null,null,null,null,null,{"$f":"SUM(D12:O12)","v":0}," ",{"$f":"COUNT(D12:O12)","v":0}]
[null,null,null,null,null,null,null,null,null,null,null,null,null,null,null,{"$f":"SUM(D13:O13)","v":0}," ",{"$f":"COUNT(D13:O13)","v":0}]
[null,null,null,null,null,null,null,null,null,null,null,null,null,null,null,{"$f":"SUM(D14:O14)","v":0}," ",{"$f":"COUNT(D14:O14)","v":0}]
[null,null,null,null,null,null,null,null,null,null,null,null,null,null,null,{"$f":"SUM(D15:O15)","v":0}," ",{"$f":"COUNT(D15:O15)","v":0}]
[null,null,null,null,null,null,null,null,null,null,null,null,null,null,null,{"$f":"SUM(D16:O16)","v":0}," ",{"$f":"COUNT(D16:O16)","v":0}]
[]
["PES SENIOR"]
[null,null,null,null,null,null,null,null,null,null,null,null,null,null,null,{"$f":"SUM(D19:O19)","v":0}," ",{"$f":"COUNT(D19:O19)","v":0}]
[null,null,null,null,null,null,null,null,null,null,null,null,null,null,null,{"$f":"SUM(D20:O20)","v":0}," ",{"$f":"COUNT(D20:O20)","v":0}]
[null,null,null,null,null,null,null,null,null,null,null,null,null,null,null,{"$f":"SUM(D21:O21)","v":0}," ",{"$f":"COUNT(D21:O21)","v":0}]

{"sheet":"Barzoj","index":2,"n_rows":20,"n_cols":18,"rows_kept":20,"cut":false,"hidden":false,"merged":[[0,15,2,15],[0,16,2,16],[0,17,2,17]]}
[null,null,null,"19.4.","26.4.","1.5.","10.5.","28.6.","5.7.","13.7.","2.8.","30.8.","13.9.","4.10.","18.10.","součet","body započítávané do soutěže","počet závodů"]
["BARZOJ",null,null,"Kolín","Lednice","Lednice","Kolín","Lednice","Lednice","Kolín","Kolín","Kolín","Lednice","Kolín","Lednice"]
["jméno psa","země","majitel",1,2,3,4,5,6,7,8,9,10,11,12]
["PES"]
["I am Patiś Son Tatranská Labka","CZ","Kubínová",null,null,null,null,null,null,null,null,null,null,null,null,{"$f":"SUM(D5:O5)","v":0}," ",{"$f":"COUNT(D5:O5)","v":0}]
[null,null,null,null,null,null,null,null,null,null,null,null,null,null,null,{"$f":"SUM(D6:O6)","v":0}," ",{"$f":"COUNT(D6:O6)","v":0}]
[null,null,null,null,null,null,null,null,null,null,null,null,null,null,null,{"$f":"SUM(D7:O7)","v":0}," ",{"$f":"COUNT(D7:O7)","v":0}]
[null,null,null,null,null,null,null,null,null,null,null,null,null,null,null,{"$f":"SUM(D8:O8)","v":0}," ",{"$f":"COUNT(D8:O8)","v":0}]
[]
["FENA"]
["Valeska Sail On Silvergil At Charsandal","SK","Macejová",null,1,null,null,null,null,null,null,null,null,null,null,{"$f":"SUM(D11:O11)","v":1}," ",{"$f":"COUNT(D11:O11)","v":1}]
[null,null,null,null,null,null,null,null,null,null,null,null,null,null,null,{"$f":"SUM(D12:O12)","v":0}," ",{"$f":"COUNT(D12:O12)","v":0}]
[null,null,null,null,null,null,null,null,null,null,null,null,null,null,null,{"$f":"SUM(D13:O13)","v":0}," ",{"$f":"COUNT(D13:O13)","v":0}]
[null,null,null,null,null,null,null,null,null,null,null,null,null,null,null,{"$f":"SUM(D14:O14)","v":0}," ",{"$f":"COUNT(D14:O14)","v":0}]
[]
["SENIOR FENA"]
[null,null,null,null,null,null,null,null,null,null,null,null,null,null,null,{"$f":"SUM(D17:O17)","v":0}," ",{"$f":"COUNT(D17:O17)","v":0}]
[null,null,null,null,null,null,null,null,null,null,null,null,null,null,null,{"$f":"SUM(D18:O18)","v":0}," ",{"$f":"COUNT(D18:O18)","v":0}]
[null,null,null,null,null,null,null,null,null,null,null,null,null,null,null,{"$f":"SUM(D19:O19)","v":0}," ",{"$f":"COUNT(D19:O19)","v":0}]
[null,null,null,null,null,null,null,null,null,null,null,null,null,null,null,{"$f":"SUM(D20:O20)","v":0}," ",{"$f":"COUNT(D20:O20)","v":0}]

{"sheet":"Italský chrtík","index":3,"n_rows":65,"n_cols":18,"rows_kept":65,"cut":false,"hidden":false,"merged":[[0,15,2,15],[0,16,2,16],[0,17,2,17]]}
[null,null,null,"19.4.","26.4.","1.5.","10.5.","28.6.","5.7.","13.7.","2.8.","30.8.","13.9.","4.10.","18.10.","součet","body započítávané do soutěže","počet závodů"]
["ITALSKÝ CHRTÍK ",null,null,"Kolín","Lednice","Lednice","Kolín","Lednice","Lednice","Kolín","Kolín","Kolín","Lednice","Kolín","Lednice"]
["jméno psa","země","majitel",1,2,3,4,5,6,7,8,9,10,11,12]
["PES"]
["Udo Next Level","CZ","Ryvolová",5,null,null,3,null,null,null,null,null,null,null,null,{"$f":"SUM(D5:O5)","v":8},null,{"$f":"COUNT(D5:O5)","v":2}]
["Sprintholic Friendly Face","FIN","Hakola",null,8,null,null,null,null,null,null,null,null,null,null,8,null,1]
["Bartolomeo Blue Infinity","CZ","Koppová",8,null,null,null,null,null,null,null,null,null,null,null,8,null,1]
["Widar Kurnous","SK","Šuleková",null,7,null,null,null,null,null,null,null,null,null,null,7,null,1]
["Vrael Můj Andílek","CZ","Medlíková",null,null,4,null,null,null,null,null,null,null,null,null,4,null,1]
["Asher Adisiah ","CZ","Musilová",null,null,1,2,null,null,null,null,null,null,null,null,3,null,2]
["Enrico Ettore Camino Bianca","CZ","Vašíčková",null,null,3,null,null,null,null,null,null,null,null,null,3,null,1]
["Solstice Light Awaken Force ","PL","Wilczynska",null,null,2,null,null,null,null,null,null,null,null,null,2,null,1]
["Atomic Tingl Tangl","CZ","Matušíková","DISQ",null,null,1,null,null,null,null,null,null,null,null,1,null,1]
["Cezar Grandezza Divina","SK","Kissová",null,null,null,null,null,null,null,null,null,null,null,null,0,null,0]
["Greytoda Uwe","HUN","Patko",null,null,null,null,null,null,null,null,null,null,null,null,0,null,0]
["Karamel Feritte Bugsy","CZ","Baxová",null,null,null,null,null,null,null,null,null,null,null,null,0,null,0]
["Alessio Affettuoso Tingl Tangl ","CZ","Králová",null,null,null,null,null,null,null,null,null,null,null,null,0,null,0]
["Jinjo Assetto Corse","IT","Siantová",null,null,null,null,null,null,null,null,null,null,null,null,0,null,0]
["Greytoday Tivon","HUN","Patko",null,null,null,null,null,null,null,null,null,null,null,null,0,null,0]
["Falcon Flavius IT Grey Butterfly","CZ","Šefčíková",null,null,null,null,null,null,null,null,null,null,null,null,0,null,0]
["Perpetum Feritte Bugsy ","CZ","Baxová",null,null,null,null,null,null,null,null,null,null,null,null,0,null,0]
["Peppe Tileco","CZ","Barák",null,null,null,null,null,null,null,null,null,null,null,null,0,null,0]
["Greytoday Tobie","HUN","Patko",null,null,null,null,null,null,null,null,null,null,null,null,0,null,0]
["Xa Cru Tileco","CZ","Tvarogová",null,null,null,null,null,null,null,null,null,null,null,null,0,null,0]
[]
["FENA"]
["Giannaadelchi","CZ","Primusová",4,5,8,4,null,null,null,null,null,null,null,null,{"$f":"SUM(D27:O27)","v":21},null,{"$f":"COUNT(D27:O27)","v":4}]
["Greytoday Ushi","CZ","Černý",6,3,6,5,null,null,null,null,null,null,null,null,20,null,4]
["Toccata Bohemia Skara","CZ","Novodvorská",null,9,9,null,null,null,null,null,null,null,null,null,18,null,2]
["Tilli Tileco","CZ","Tvarogová",7,6,5,null,null,null,null,null,null,null,null,null,18,null,3]
["Chicky Feritte, Bugsy (fena)","CZ","Baxová",10,null,null,null,null,null,null,null,null,null,null,null,10,null,1]
["Nataly Feritte Bugsy ","CZ","Baxová",9,null,null,null,null,null,null,null,null,null,null,null,9,null,1]
["Valli Tileco ","CZ","Tvarogová",2,2,3,null,null,null,null,null,null,null,null,null,7,null,3]
["Solstice Light of Luna (fena)",null,null,null,null,null,null,null,null,null,null,null,null,null,null,0,null,0]
["Chicky Feritte, Bugsy (fena)",null,null,null,null,null,null,null,null,null,null,null,null,null,null,0,null,0]
[null,null,null,null,null,null,null,null,null,null,null,null,null,null,null,0,null,0]
[null,null,null,null,null,null,null,null,null,null,null,null,null,null,null,0,null,0]
[null,null,null,null,null,null,null,null,null,null,null,null,null,null,null,0,null,0]
[null,null,null,null,null,null,null,null,null,null,null,null,null,null,null,0,null,0]
[null,null,null,null,null,null,null,null,null,null,null,null,null,null,null,0,null,0]
["Solstice Light This Is The Way","PL","Wilczynska",null,null,7,null,null,null,null,null,null,null,null,null,7,null,1]
["Víla Feritte Bugsy ","CZ","Buřičová",3,null,null,3,null,null,null,null,null,null,null,null,6,null,2]
["Vittoria Tileco","AT","Pírová",null,null,4,null,null,null,null,null,null,null,null,null,4,null,1]
["Aghata Tingl Tangl ","CZ","Váchová",null,4,null,null,null,null,null,null,null,null,null,null,4,null,1]
["Jasmine Feritte Bugsy ","CZ","Šulcová",null,null,1,1,null,null,null,null,null,null,null,null,2,null,2]
["Danielle Amore Estivo Ferrino Chelsea","CZ","Mottlová",null,null,null,2,null,null,null,null,null,null,null,null,2,null,1]
["Wella Tileco","SK","Kolariková",null,null,2,null,null,null,null,null,null,null,null,null,2,null,1]
["Tiziana Tileco","SK","Kleinová",null,1,null,null,null,null,null,null,null,null,null,null,1,null,1]
["Solstice Light of Luna (fena)","PL","Wilczynska",null,null,null,null,null,null,null,null,null,null,null,null,0,null,0]
["Namah Shivaya Assetto Corse","CZ","Ivánek",null,null,null,null,null,null,null,null,null,null,null,null,0,null,0]
["Greytoday Ullaya","HUN","Patko",null,null,null,null,null,null,null,null,null,null,null,null,0,null,0]
["Greytoday Thayah","HUN","Patko",null,null,null,null,null,null,null,null,null,null,null,null,0,null,0]
["Fréa Gol-Endor Dora Grey","SK","Finiková",null,null,null,null,null,null,null,null,null,null,null,null,0,null,0]
[]
["SENIOR PES"]
["Jeans Feritte Bugsy ","CZ","Palánková",2,3,1,2,null,null,null,null,null,null,null,null,{"$f":"SUM(D56:O56)","v":8}," ",{"$f":"COUNT(D56:O56)","v":4}]
["Essenziale Assetto Corse","IT","Siantová",null,null,null,null,null,null,null,null,null,null,null,null,{"$f":"SUM(D57:O57)","v":0},null,{"$f":"COUNT(D57:O57)","v":0}]
["Easter Bubble Assetto Corse","CZ","Rejda",null,null,null,null,null,null,null,null,null,null,null,null,{"$f":"SUM(D58:O58)","v":0},null,{"$f":"COUNT(D58:O58)","v":0}]
["Classic Edition Rosanelli","CZ","Davidová",null,null,null,null,null,null,null,null,null,null,null,null,{"$f":"SUM(D59:O59)","v":0},null,{"$f":"COUNT(D59:O59)","v":0}]
[]
["SENIOR FENA"]
["Ultra Ginetta Annaperla ","CZ","Váchová",null,2,null,null,null,null,null,null,null,null,null,null,{"$f":"SUM(D62:O62)","v":2},null,{"$f":"COUNT(D62:O62)","v":1}]
["Etna Prestissimo","PL","Wilczynska",null,null,null,null,null,null,null,null,null,null,null,null,0,null,0]
["Cherrylee Raya Rozárka","CZ","Funková",null,"DISM",null,"DISM",null,null,null,null,null,null,null,null,0,null,0]
["Anabella Fragoletta","CZ","Plačková",1,null,null,null,null,null,null,null,null,null,null,null,1,null,1]

{"sheet":"saluki","index":4,"n_rows":29,"n_cols":18,"rows_kept":29,"cut":false,"hidden":false,"merged":[[0,15,2,15],[0,16,2,16],[0,17,2,17]]}
[null,null,null,"19.4.","26.4.","1.5.","10.5.","28.6.","5.7.","13.7.","2.8.","30.8.","13.9.","4.10.","18.10.","součet","body započítávané do soutěže","počet závodů"]
["SALUKI",null,null,"Kolín","Lednice","Lednice","Kolín","Lednice","Lednice","Kolín","Kolín","Kolín","Lednice","Kolín","Lednice"]
["jméno psa","země","majitel",1,2,3,4,5,6,7,8,9,10,11,12]
["PES"]
["Emad av Min Tera","CZ","Lučná",null,null,null,null,null,null,null,null,null,null,null,null,{"$f":"SUM(D5:O5)","v":0},null,{"$f":"COUNT(D5:O5)","v":0}]
["Afshar Century Mohabbat","CZ","Holec",null,null,null,null,null,null,null,null,null,null,null,null,0,null,0]
["Jawad al Zahra","CZ","Pudová",null,null,null,null,null,null,null,null,null,null,null,null,0,null,0]
[]
[null,null,null,null,null,null,null,null,null,null,null,null,null,null,null,{"$f":"SUM(D9:O9)","v":0},null,{"$f":"COUNT(D9:O9)","v":0}]
[]
["FENA"]
["Arosa az´Yildi Del´Neshin","CZ","Ramešová",3,null,2,3,null,null,null,null,null,null,null,null,{"$f":"SUM(D12:O12)","v":8},null,{"$f":"COUNT(D12:O12)","v":3}]
["Jameelah Al Zahra","CZ","Kupec",null,null,1,"DISM",null,null,null,null,null,null,null,null,1,null,1]
["Acadia Tawalla","CZ","Andziol","DISM",null,null,null,null,null,null,null,null,null,null,null,0,null,0]
["Ciel Besaba Giliath","CZ","Bartošocá",null,null,null,null,null,null,null,null,null,null,null,null,0,null,0]
["Basilah Devon Exe","CZ","Vašíková",null,null,null,null,null,null,null,null,null,null,null,null,0,null,0]
["Boroumad Century Mohabbat","CZ","Jandová","DISQ",null,null,"DISQ",null,null,null,null,null,null,null,null,0,null,0]
["Ouarda of Falconers Dream","AT","Wiesher",null,null,null,null,null,null,null,null,null,null,null,null,0,null,0]
["Ordak of Falconers Dream","AT","Wiesher",null,null,null,null,null,null,null,null,null,null,null,null,0,null,0]
["Cashmere Deluca Moravia","CZ","Hynková",null,null,null,null,null,null,null,null,null,null,null,null,0,null,0]
["Jasmine al Zahra","CZ","Pudová",null,null,null,null,null,null,null,null,null,null,null,null,0,null,0]
[]
["SENIOR PES"]
["Arpak Faravahar","CZ","Havrdová",1,null,null,null,null,null,null,null,null,null,null,null,{"$f":"SUM(D24:O24)","v":1},null,{"$f":"COUNT(D24:O24)","v":1}]
["Abbas Lilhaya","CZ","Hartmannová",null,null,null,1,null,null,null,null,null,null,null,null,{"$f":"SUM(D25:O25)","v":1},null,{"$f":"COUNT(D25:O25)","v":1}]
[]
["SENIOR FENA"]
["Larabee Azadi Al Djiibaajah","CZ","Kracmarová",null,null,null,null,null,null,null,null,null,null,null,null,{"$f":"SUM(D28:O28)","v":0},null,{"$f":"COUNT(D28:O28)","v":0}]
[null,null,null,null,null,null,null,null,null,null,null,null,null,null,null,{"$f":"SUM(D29:O29)","v":0},null,{"$f":"COUNT(D29:O29)","v":0}]

{"sheet":"sloughi","index":5,"n_rows":25,"n_cols":18,"rows_kept":25,"cut":false,"hidden":false,"merged":[[0,15,2,15],[0,16,2,16],[0,17,2,17]]}
[null,null,null,"19.4.","26.4.","1.5.","10.5.","28.6.","5.7.","13.7.","2.8.","30.8.","13.9.","4.10.","18.10.","součet","body započítávané do soutěže","počet závodů"]
["SLOUGHI",null,null,"Kolín","Lednice","Lednice","Kolín","Lednice","Lednice","Kolín","Kolín","Kolín","Lednice","Kolín","Lednice"]
["jméno psa","země","majitel",1,2,3,4,5,6,7,8,9,10,11,12]
["PES"]
["del Khazaris Karel ag Dalvit","cz","Kubová",2,1,2,1,null,null,null,null,null,null,null,null,{"$f":"SUM(D5:O5)","v":6},null,{"$f":"COUNT(D5:O5)","v":4}]
["Dalmas Tulpar","CZ","Kubová",1,2,1,2,null,null,null,null,null,null,null,null,{"$f":"SUM(D6:O6)","v":6},null,{"$f":"COUNT(D6:O6)","v":4}]
["Tyalou Dudomaine al Farid","PL","Cielinska",null,null,null,null,null,null,null,null,null,null,null,null,{"$f":"SUM(D7:O7)","v":0},null,{"$f":"COUNT(D7:O7)","v":0}]
["Asaad Sayed Assahra","CZ","Zahálková",null,null,null,null,null,null,null,null,null,null,null,null,{"$f":"SUM(D8:O8)","v":0},null,{"$f":"COUNT(D8:O8)","v":0}]
[null,null,null,null,null,null,null,null,null,null,null,null,null,null,null,{"$f":"SUM(D9:O9)","v":0},null,{"$f":"COUNT(D9:O9)","v":0}]
[]
["FENA"]
["Alzena Bella la Rossa","CZ","Wieznerová",3,null,3,3,null,null,null,null,null,null,null,null,{"$f":"SUM(D12:O12)","v":9},null,{"$f":"COUNT(D12:O12)","v":3}]
["Nouria Mahanajim","PL","Bialowiejska",4,null,null,null,null,null,null,null,null,null,null,null,{"$f":"SUM(D13:O13)","v":4}," ",{"$f":"COUNT(D13:O13)","v":1}]
["Alanqua Quetshadee","DE","Schwarzat",null,null,null,4,null,null,null,null,null,null,null,null,{"$f":"SUM(D14:O14)","v":4}," ",{"$f":"COUNT(D14:O14)","v":1}]
[null,null,null,null,null,null,null,null,null,null,null,null,null,null,null,{"$f":"SUM(D15:O15)","v":0}," ",{"$f":"COUNT(D15:O15)","v":0}]
[]
["SENIOR PES"]
[null,null,null,null,null,null,null,null,null,null,null,null,null,null,null,{"$f":"SUM(D18:O18)","v":0}," ",{"$f":"COUNT(D18:O18)","v":0}]
[null,null,null,null,null,null,null,null,null,null,null,null,null,null,null,{"$f":"SUM(D19:O19)","v":0}," ",{"$f":"COUNT(D19:O19)","v":0}]
[null,null,null,null,null,null,null,null,null,null,null,null,null,null,null,{"$f":"SUM(D20:O20)","v":0}," ",{"$f":"COUNT(D20:O20)","v":0}]
[]
["SENIOR FENA"]
[null,null,null,null,null,null,null,null,null,null,null,null,null,null,null,{"$f":"SUM(D23:O23)","v":0}," ",{"$f":"COUNT(D23:O23)","v":0}]
[null,null,null,null,null,null,null,null,null,null,null,null,null,null,null,{"$f":"SUM(D24:O24)","v":0}," ",{"$f":"COUNT(D24:O24)","v":0}]
[null,null,null,null,null,null,null,null,null,null,null,null,null,null,null,{"$f":"SUM(D25:O25)","v":0}," ",{"$f":"COUNT(D25:O25)","v":0}]

{"sheet":"Španělský galgo","index":6,"n_rows":27,"n_cols":18,"rows_kept":27,"cut":false,"hidden":false,"merged":[[0,15,2,15],[0,16,2,16],[0,17,2,17]]}
[null,null,null,"19.4.","26.4.","1.5.","10.5.","28.6.","5.7.","13.7.","2.8.","30.8.","13.9.","4.10.","18.10.","součet","body započítávané do soutěže","počet závodů"]
["ŠPANĚLSKÝ GALGO",null,null,"Kolín","Lednice","Lednice","Kolín","Lednice","Lednice","Kolín","Kolín","Kolín","Lednice","Kolín","Lednice"]
["jméno psa","země","majitel",1,2,3,4,5,6,7,8,9,10,11,12]
["PES"]
["Beastie Boy Rabbit´s nightmare","CZ","Keberlová",2,2,null,null,null,null,null,null,null,null,null,null,{"$f":"SUM(D5:O5)","v":4},null,{"$f":"COUNT(D5:O5)","v":2}]
["Aramis de Galgos Paganiniho symfonie","CZ","Kastlová",null,null,3,null,null,null,null,null,null,null,null,null,3,null,1]
["Big Bang Element Adrenaline","AT","Fleischmann",null,null,null,null,null,null,null,null,null,null,null,null,0,null,0]
["Barbarian Rabbit´s Nightmare","CZ","Richterová",null,null,null,null,null,null,null,null,null,null,null,null,0,null,0]
["Best of Element Adrenaline","AT","Fleischmann",null,null,null,null,null,null,null,null,null,null,null,null,0,null,0]
["Armani de Galgos Paganiniho symfonie","CZ","Kyprá","DISM",null,null,"DISM",null,null,null,null,null,null,null,null,0,null,0]
[]
["FENA"]
["Bella Dama Element Adrenaline","CZ","Nováčková",null,null,null,4,null,null,null,null,null,null,null,null,{"$f":"SUM(D13:O13)","v":4},null,{"$f":"COUNT(D13:O13)","v":1}]
["Cleo","AT","Schiman-Benauer",null,3,null,null,null,null,null,null,null,null,null,null,3,null,1]
["Cometa Element Adrenaline","CZ","Nováčková",null,null,null,3,null,null,null,null,null,null,null,null,3,null,1]
["Artemisia","CZ","Nováčková",null,null,null,2,null,null,null,null,null,null,null,null,2,null,1]
["Angelika de GalgosPaganiniho symfonie","CZ","Kastlová",null,null,2,null,null,null,null,null,null,null,null,null,2,null,1]
["Arwen Element Adrenalin","CZ","Brandová",null,1,null,null,null,null,null,null,null,null,null,null,1,null,1]
["Ojo Caliente Caritas Palesio","CZ","Kastlová",null,null,1,null,null,null,null,null,null,null,null,null,1,null,1]
["Ballerina Rabbit´s nightmare","CZ","Richterová",null,null,null,null,null,null,null,null,null,null,null,null,0,null,0]
["Bonita Noche Element Adrenaline","CZ","Eliášová",null,null,null,null,null,null,null,null,null,null,null,null,0,null,0]
[]
["SENIOR PES"]
["Archer Rabbit´s nightmare","CZ","Richterová",null,null,null,null,null,null,null,null,null,null,null,null,{"$f":"SUM(D24:O24)","v":0},null,{"$f":"COUNT(D24:O24)","v":0}]
[]
["SENIOR FENA"]
["Hortensia Hot Isle","CZ","Richterová",null,null,null,null,null,null,null,null,null,null,null,null,{"$f":"SUM(D27:O27)","v":0},null,{"$f":"COUNT(D27:O27)","v":0}]

{"sheet":"whippet","index":7,"n_rows":109,"n_cols":18,"rows_kept":109,"cut":false,"hidden":false,"merged":[[0,15,2,15],[0,16,2,16],[0,17,2,17]]}
[null,null,null,"19.4.","26.4.","1.5.","10.5.","28.6.","5.7.","13.7.","2.8.","30.8.","13.9.","4.10.","18.10.","součet","body započítávané do soutěže","počet závodů"]
["WHIPPET",null,null,"Kolín","Lednice","Lednice","Kolín","Lednice","Lednice","Kolín","Kolín","Kolín","Lednice","Kolín","Lednice"]
["jméno psa","země","majitel",1,2,3,4,5,6,7,8,9,10,11,12]
["PES"]
["Harley Blue North","CZ","Macháčková",10,7,11,10,null,null,null,null,null,null,null,null,{"$f":"SUM(D5:O5)","v":38},null,{"$f":"COUNT(D5:O5)","v":4}]
["Carson Pepper Bono Venandi","CZ","Pevná",11,6,10,8,null,null,null,null,null,null,null,null,35,null,4]
["Adeo Terra Stella Bohemica ","CZ","Novotný",12,null,9,13,null,null,null,null,null,null,null,null,34,null,3]
["Endless Speed Fancy That","CZ","Kaucká",16,null,null,16,null,null,null,null,null,null,null,null,32,null,2]
["First Petrificus Totalus","CZ","Vaněk ",null,null,13,15,null,null,null,null,null,null,null,null,28,null,2]
["Forest Jump Ready Go","CZ","Kostková",13,null,null,14,null,null,null,null,null,null,null,null,27,null,2]
["Inspiration Inventum ","CZ","Kosová",9,null,null,11,null,null,null,null,null,null,null,null,20,null,2]
["Alioth Flying Falcon","CZ","Novosad",6,null,7,6,null,null,null,null,null,null,null,null,19,null,3]
["Endless Eclipse Fancy That","CZ","Havlová",null,null,null,18,null,null,null,null,null,null,null,null,18,null,1]
["Peruán Bohemia Snap Dog","CZ","Havlová",null,null,null,17,null,null,null,null,null,null,null,null,17,null,1]
["Chacky Blue North","CZ","Slanovodský",null,4,12,null,null,null,null,null,null,null,null,null,16,null,2]
["Wiss Vlapan","CZ","Dvořáková",15,null,"DISM",null,null,null,null,null,null,null,null,null,15,null,1]
["Aaron Bon Esprit","CZ","Šlechta Petr",14,null,null,"MWDR?",null,null,null,null,null,null,null,null,14,null,1]
["Intouch Inventum ","CZ","Šalata",7,null,null,7,null,null,null,null,null,null,null,null,14,null,2]
["Dark Shadow New Nazaret","CZ","Sokolíková",5,3,6,null,null,null,null,null,null,null,null,null,14,null,3]
["Ragnarok de la Deesse aux Bras Blanc","CZ","Molnár",3,2,8,null,null,null,null,null,null,null,null,null,13,null,3]
["Camaro New Nazaret","CZ","Mikovec",null,null,null,12,null,null,null,null,null,null,null,null,12,null,1]
["Jackson Inventum","CZ","Vaněk ",null,null,null,9,null,null,null,null,null,null,null,null,9,null,1]
["Fósforos Ayort Back","CZ","Vaňková",null,null,5,4,null,null,null,null,null,null,null,null,9,null,2]
["Bonetto Lee Welcoming Dog","PL","Grzadziel",8,null,null,null,null,null,null,null,null,null,null,null,8,null,1]
["Charly Blue North","CZ","Bronec",null,5,"DISQ",null,null,null,null,null,null,null,null,null,5,null,1]
["Fun Tom Ready Go","CZ","Koumar",null,null,null,5,null,null,null,null,null,null,null,null,5,null,1]
["Astral Ace Flying Falcon","PL","Grzadziel",4,null,null,null,null,null,null,null,null,null,null,null,4,null,1]
["Endymión Ayort Back","CZ","Němcovi",null,null,null,3,null,null,null,null,null,null,null,null,3,null,1]
["Aristo Crat Bon Esprit","CZ","Rokyta",2,null,null,null,null,null,null,null,null,null,null,null,2,null,1]
["Apollon Bon Esprit","CZ","Lacinová",1,null,null,null,null,null,null,null,null,null,null,null,1,null,1]
["Caliban Pinto Bono Venandi","CZ","Bittner",null,1,"MWDR",null,null,null,null,null,null,null,null,null,1,null,1]
["Ayrton Welcoming dog","CZ","Vaněk ",null,null,null,null,null,null,null,null,null,null,null,null,0,null,0]
["Firebomb Nulli Secundus","SK","Kohutová",null,null,null,null,null,null,null,null,null,null,null,null,0,null,0]
["Dare to Win Fancy That","CZ","Vacková",null,null,null,null,null,null,null,null,null,null,null,null,0,null,0]
["Hunter Blue North","CZ","Kantorová",null,null,null,null,null,null,null,null,null,null,null,null,0,null,0]
["Busty King Welcoming Dog","CZ","Jašurková",null,null,null,null,null,null,null,null,null,null,null,null,0,null,0]
["Knight of Darkness de Wallrock","CZ","Sofronová",null,null,null,null,null,null,null,null,null,null,null,null,0,null,0]
["Dare to Follow Sonic Workaholic","PL","Gronowska",null,null,null,null,null,null,null,null,null,null,null,null,0,null,0]
["Flubber Ready Go","CZ","Lacinová",null,null,null,"DISQ",null,null,null,null,null,null,null,null,0,null,0]
["Chipsy Blue North","CZ","Havrdová",null,null,null,null,null,null,null,null,null,null,null,null,0,null,0]
["Dellinger Ready Go","CZ","Jedlička",null,null,null,null,null,null,null,null,null,null,null,null,0,null,0]
["Al Pacino Faranda Bohemia","PL","Cogiel",null,null,"DISM",null,null,null,null,null,null,null,null,null,0,null,0]
[]
["FENA"]
["Fifinetty Ready Go","CZ","Konečná",12,null,9,12,null,null,null,null,null,null,null,null,{"$f":"SUM(D45:O45)","v":33},null,{"$f":"COUNT(D45:O45)","v":3}]
["Daenerys z Podsmrčků","CZ","Broulíkovi",6,4,6,2,null,null,null,null,null,null,null,null,18,null,4]
["Priscilla Bohemia Snap Dog","CZ","Zuvač",8,null,null,10,null,null,null,null,null,null,null,null,18,null,2]
["Elaiza Monelly Ready GO","CZ","Rajnochová",7,null,3,7,null,null,null,null,null,null,null,null,17,null,3]
["Dare To Be Divine Fancy That","SK","Gaži",null,null,null,13,null,null,null,null,null,null,null,null,13,null,1]
["Antoanett Bon Esprit","CZ","Macková",null,null,8,4,null,null,null,null,null,null,null,null,12,null,2]
["Dare to Dream Fancy That ","CZ","Skoumal",null,null,null,11,null,null,null,null,null,null,null,null,11,null,1]
["Asperula Flying Falcon","CZ","Kaplan",11,null,null,null,null,null,null,null,null,null,null,null,11,null,1]
["Evanessa Mae Ready Go","CZ","Stohanzlová",3,null,null,8,null,null,null,null,null,null,null,null,11,null,2]
["Hayabusa Blue North","CZ","Lačňáková",null,3,7,null,null,null,null,null,null,null,null,null,10,null,{"$f":"COUNT(D54:O54)","v":2}]
["Xenia Vlapan","CZ","Jersáková",null,null,5,5,null,null,null,null,null,null,null,null,10,null,2]
["Yosie Vlapan","CZ","Jerneková",10,null,null,null,null,null,null,null,null,null,null,null,10,null,1]
["Buggy Buggy Welcoming Dog","CZ","Metelková",9,null,null,null,null,null,null,null,null,null,null,null,9,null,1]
["Endles Sky Fancy That","CZ","Neubergová",null,null,null,9,null,null,null,null,null,null,null,null,9,null,1]
["Dulccinea Ready Go","CZ","Pernecká",null,null,null,6,null,null,null,null,null,null,null,null,6,null,1]
["Chloe Esprit Blue North","SK","Schlosserová",null,2,4,null,null,null,null,null,null,null,null,null,6,null,2]
["Glorious Starlight Sirocco Sighthounds","PL","Jarosinska",5,null,null,null,null,null,null,null,null,null,null,null,5,null,1]
["Alabastra´s Nemesis","CZ","Jerneková",4,null,null,null,null,null,null,null,null,null,null,null,4,null,1]
["Ambrosia Flying Falcon","CZ","Šubrová",null,null,null,3,null,null,null,null,null,null,null,null,3,null,1]
["Dare to Love Fancy That","CZ","Dobřichovská",2,null,null,null,null,null,null,null,null,null,null,null,2,null,1]
["Ace of Galaxy Fast Beat","CZ","Funková",null,null,null,1,null,null,null,null,null,null,null,null,1,null,1]
["Tahini Dzikie Historie","PL","Wojciechowska",1,null,null,null,null,null,null,null,null,null,null,null,1,null,1]
["Ayleen Bon Esprit","CZ","Kaplan",null,null,null,null,null,null,null,null,null,null,null,null,0,null,0]
["Wivien Vlapan","CZ","Svobodová",null,null,null,null,null,null,null,null,null,null,null,null,0,null,0]
["Guapa Blue North","CZ","Lačňáková",null,"DISQ",null,null,null,null,null,null,null,null,null,null,0,null,0]
["Dandeliony Ready Go","CZ","Kupková",null,null,null,null,null,null,null,null,null,null,null,null,0,null,0]
["Calliope Rara Canis","CZ","Kaniová",null,null,null,null,null,null,null,null,null,null,null,null,0,null,0]
["Journey Globe Glass","CZ","Krahulíková",null,null,null,null,null,null,null,null,null,null,null,null,0,null,0]
["Yazara Vlapan","CZ","Beňová",null,null,null,null,null,null,null,null,null,null,null,null,0,null,0]
["Arteta Bleuy Grace Dog","CZ","Betka",null,null,null,null,null,null,null,null,null,null,null,null,0,null,0]
["Dare To Shine Fancy That","CZ","Koťátková",null,null,null,null,null,null,null,null,null,null,null,null,0,null,0]
["Calllisto Nice Bono Venandi","CZ","Martincová",null,null,null,null,null,null,null,null,null,null,null,null,0,null,0]
["Bura Orksanska von den Donauauen","AT","Walk",null,null,null,null,null,null,null,null,null,null,null,null,0,null,0]
["Peppy Lapeau vom Rauhen Meer","AT","Walk",null,null,null,null,null,null,null,null,null,null,null,null,0,null,0]
["In Vogue Inventum","CZ","Žyková",null,null,null,null,null,null,null,null,null,null,null,null,0,null,0]
["Flame of Freedom Loyal Gladiator","AT","Walk",null,null,null,null,null,null,null,null,null,null,null,null,0,null,0]
["Ulla Vlapan","CZ","Beňová",null,null,null,null,null,null,null,null,null,null,null,null,0,null,0]
["Arya Welcoming Dog","CZ","Metelková",null,null,null,null,null,null,null,null,null,null,null,null,0,null,0]
["Heurrecca Cresidee Rozárka","CZ","Žyková",null,null,null,null,null,null,null,null,null,null,null,null,0,null,0]
["Alize Bleuy Grace Dog","CZ","Metelková",null,null,null,null,null,null,null,null,null,null,null,null,0,null,0]
["Bonnie Camaro Arrows","CZ","Pařízková",null,null,"MWDR",null,null,null,null,null,null,null,null,null,0,null,0]
["Endless Summer Fancy That","CZ","Doušová",null,null,null,null,null,null,null,null,null,null,null,null,0,null,0]
["Iris Iustitia Blue North","CZ","Löbl",null,null,"DISM",null,null,null,null,null,null,null,null,null,0,null,0]
[]
["SENIOR PES"]
["Ayrton Welcoming dog","CZ","Vaněk ",4,null,4,2,null,null,null,null,null,null,null,null,{"$f":"SUM(D90:O90)","v":10},null,{"$f":"COUNT(D90:O90)","v":3}]
["Ayel Welcoming Dog","PL","Cogiel",null,null,3,null,null,null,null,null,null,null,null,null,3," ",1]
["Excalibur, Jitka-Miki","CZ","Šlechta Petr",null,null,null,null,null,null,null,null,null,null,null,null,0," ",0]
["Overdose Bohemia Snap Dog","CZ","Netrefa",null,null,null,null,null,null,null,null,null,null,null,null,0," ",0]
["Cometty Flash Ready Go","CZ","Kostková",null,null,null,null,null,null,null,null,null,null,null,null,0," ",0]
["Haristo Inventum","CZ","Skoupý",null,null,null,null,null,null,null,null,null,null,null,null,0," ",0]
["Rio Vlapan","CZ","Milerová",null,null,null,null,null,null,null,null,null,null,null,null,0," ",0]
["Chopper Sunny Funny","CZ",null,null,null,null,null,null,null,null,null,null,null,null,null,0," ",0]
[null,null,null,null,null,null,null,null,null,null,null,null,null,null,null,0," ",0]
[]
["SENIOR FENA"]
["CON ELLY Ready Go","CZ","Konečná",3,null,5,4,null,null,null,null,null,null,null,null,{"$f":"SUM(D101:O101)","v":12}," ",{"$f":"COUNT(D101:O101)","v":3}]
["Moonlight Blue Gentle Heart","CZ","Slavíčková",5,null,null,3,null,null,null,null,null,null,null,null,8," ",2]
["Corra New Nazaret","CZ","Malátková",null,2,1,null,null,null,null,null,null,null,null,null,3," ",2]
["Goldie Blue North","CZ","Bronec",null,1,2,null,null,null,null,null,null,null,null,null,3," ",2]
["Arya Welcoming Dog","CZ","Metelková",2,null,null,null,null,null,null,null,null,null,null,null,2," ",1]
["Orphee Bohemia Snap Dog","CZ","Pašková",1,null,null,1,null,null,null,null,null,null,null,null,2," ",2]
["Harmony Inventum","CZ","Tandlerová",null,null,null,null,null,null,null,null,null,null,null,null,0," ",0]
["Audrey Welcoming Dog","CZ","Kovalská",null,null,null,null,null,null,null,null,null,null,null,null,0," ",0]
["Catch Me If You Can Fancy That","CZ","Doušová",null,null,null,null,null,null,null,null,null,null,null,null,0," ",0]

{"sheet":"basenji","index":8,"n_rows":33,"n_cols":18,"rows_kept":33,"cut":false,"hidden":false,"merged":[[0,15,2,15],[0,16,2,16],[0,17,2,17]]}
[null,null,null,"19.4.","26.4.","1.5.","10.5.","28.6.","5.7.","13.7.","2.8.","30.8.","13.9.","4.10.","18.10.","součet","body započítávané do soutěže","počet závodů"]
["BASENJI",null,null,"Kolín","Lednice","Lednice","Kolín","Lednice","Lednice","Kolín","Kolín","Kolín","Lednice","Kolín","Lednice"]
["jméno psa","země","majitel",1,2,3,4,5,6,7,8,9,10,11,12]
["PES"]
["Arthas At The Journey Man Inn","CZ","Košťálová",4,2,2,4,null,null,null,null,null,null,null,null,{"$f":"SUM(D5:O5)","v":12},null,{"$f":"COUNT(D5:O5)","v":4}]
["Intisara´s Hermes","CZ","Drešerová",3,null,null,1,null,null,null,null,null,null,null,null,4,null,2]
["Flow Anulinka","CZ","Frydrychová","DISQ",null,3,null,null,null,null,null,null,null,null,null,3,null,1]
["Hermés Anulinka","CZ","Bartáková",null,null,null,3,null,null,null,null,null,null,null,null,3,null,1]
["Garry Prince Of Mabanga","CZ","Mizera",null,null,null,null,null,null,null,null,null,null,null,null,0,null,0]
["On The Dark Side Bahaticca´s","CZ","Mizera",null,null,null,null,null,null,null,null,null,null,null,null,0,null,0]
["Ohti Lucky of Burudika","CZ","Drešerová",null,null,null,null,null,null,null,null,null,null,null,null,0,null,0]
["Jupoto Poto Asthenia","CZ","Lenfeldová",null,null,null,null,null,null,null,null,null,null,null,null,0,null,0]
["Abnaxus At The Journey Man Inn","CZ","Andreevová","DISQ",null,null,null,null,null,null,null,null,null,null,null,0,null,0]
["Azir Huriland Dog Breeding","CZ","Košťálová",null,null,null,null,null,null,null,null,null,null,null,null,0,null,0]
[]
["FENA"]
["Amaranthine At The Journey Man Inn","CZ","Onderková",3,null,null,null,null,null,null,null,null,null,null,null,{"$f":"SUM(D17:O17)","v":3},null,{"$f":"COUNT(D17:O17)","v":1}]
["Visit Card Adebanke´s","CZ","Čechurová",null,null,null,2,null,null,null,null,null,null,null,null,2,null,1]
["Helga of Tribe Bas-Bar","CZ","Pavčová",2,null,null,null,null,null,null,null,null,null,null,null,2,null,1]
["Ghini Mabanga","CZ","Popelková",null,1,null,null,null,null,null,null,null,null,null,null,1,null,1]
["Asanthe Moyo Wa Konga","CZ","Šafránková",null,null,1,null,null,null,null,null,null,null,null,null,1,null,1]
["Dancing with the demons Stoneface","CZ","Maier",1,null,null,null,null,null,null,null,null,null,null,null,1,null,1]
["Aira Star My Beautiful Savage","CZ","Knápek",null,null,null,null,null,null,null,null,null,null,null,null,0,null,0]
["Erza Puzzle of Manominoko","CZ","Albrecht",null,null,null,null,null,null,null,null,null,null,null,null,0,null,0]
["Holly Krumloš","CZ","Müllerová",null,null,null,null,null,null,null,null,null,null,null,null,0,null,0]
[]
["SENIOR PES"]
[null,null,null,null,null,null,null,null,null,null,null,null,null,null,null,{"$f":"SUM(D28:O28)","v":0},null,{"$f":"COUNT(D28:O28)","v":0}]
[null,null,null,null,null,null,null,null,null,null,null,null,null,null,null,{"$f":"SUM(D29:O29)","v":0},null,{"$f":"COUNT(D29:O29)","v":0}]
[]
["SENIOR FENA"]
["Hakika Sewu Asthenia","CZ","Čechurová",1,null,null,1,null,null,null,null,null,null,null,null,{"$f":"SUM(D32:O32)","v":2},null,{"$f":"COUNT(D32:O32)","v":2}]
["Dibi Mabanga","CZ","Popelková",null,null,null,null,null,null,null,null,null,null,null,null,{"$f":"SUM(D33:O33)","v":0},null,{"$f":"COUNT(D33:O33)","v":0}]

{"sheet":"Faraonský pes","index":9,"n_rows":31,"n_cols":18,"rows_kept":31,"cut":false,"hidden":false,"merged":[[0,15,2,15],[0,16,2,16],[0,17,2,17]]}
[null,null,null,"19.4.","26.4.","1.5.","10.5.","28.6.","5.7.","13.7.","2.8.","30.8.","13.9.","4.10.","18.10.","součet","body započítávané do soutěže","počet závodů"]
["FARAÓNSKÝ PES",null,null,"Kolín","Lednice","Lednice","Kolín","Lednice","Lednice","Kolín","Kolín","Kolín","Lednice","Kolín","Lednice"]
["jméno psa","země","majitel",1,2,3,4,5,6,7,8,9,10,11,12]
["FENA"]
["Danae Enmesara Wai-Wad","CZ","Kutiová",6,null,5,4,null,null,null,null,null,null,null,null,{"$f":"SUM(D5:O5)","v":15},null,{"$f":"COUNT(D5:O5)","v":3}]
["Lust I The Dust Bazinga","CZ","Janouchová",5,null,4,null,null,null,null,null,null,null,null,null,9,null,2]
["Vershka Stupor Mundi","CZ","Konečná",4,null,2,null,null,null,null,null,null,null,null,null,6,null,2]
["Drika Duanpaen Wai-Wad","CZ","Kutiová",1,null,1,3,null,null,null,null,null,null,null,null,5,null,3]
["Alexandra Ginger Dwarf","CZ","Fohlová",null,null,3,null,null,null,null,null,null,null,null,null,3,null,1]
["Just Coffee Akasha","CZ","Coufalová",null,null,null,null,null,null,null,null,null,null,null,null,0,null,0]
["Burning Sky Florida's Diamonds","CZ","Konečná",null,null,null,null,null,null,null,null,null,null,null,null,0,null,0]
["Beauty Bonza Florina´s Diamond","CZ","Nejedlá",null,null,null,null,null,null,null,null,null,null,null,null,0,null,0]
[]
["PES"]
["Deimos Daig Wai-Wad","CZ","Kolbábková",3,null,2,2,null,null,null,null,null,null,null,null,{"$f":"SUM(D15:O15)","v":7},null,{"$f":"COUNT(D15:O15)","v":3}]
["Osiris Next Level Superman XO","CZ","Halenková",2,null,1,1,null,null,null,null,null,null,null,null,{"$f":"SUM(D16:O16)","v":4},null,3]
["Amadeus Ginger Dwarf","CZ","Fohlová",null,null,3,null,null,null,null,null,null,null,null,null,{"$f":"SUM(D17:O17)","v":3},null,1]
["Izzy Putimská brána ","CZ","Nevěčná",null,null,null,null,null,null,null,null,null,null,null,null,{"$f":"SUM(D18:O18)","v":0},null,0]
["Archimedes Ginger Dwarf",null,"Szczerkowska",null,null,null,null,null,null,null,null,null,null,null,null,{"$f":"SUM(D19:O19)","v":0},null,0]
[]
["FENA SENIOR"]
["Cantara Anat Wai-Wad","CZ","Fohlová",null,null,null,null,null,null,null,null,null,null,null,null,{"$f":"SUM(D22:O22)","v":0},null,{"$f":"COUNT(D22:O22)","v":0}]
["Anchsenamon Queen Florina´s Diamond","CZ","Nguyenová",null,null,null,null,null,null,null,null,null,null,null,null,{"$f":"SUM(D23:O23)","v":0},null,{"$f":"COUNT(D23:O23)","v":0}]
["Caracala Aiás Wai-Wad","CZ","Košnarová",null,null,null,null,null,null,null,null,null,null,null,null,{"$f":"SUM(D24:O24)","v":0},null,{"$f":"COUNT(D24:O24)","v":0}]
["Ceridwen Enki Wai-Wad","CZ","Košnarová",null,null,null,null,null,null,null,null,null,null,null,null,{"$f":"SUM(D25:O25)","v":0},null,{"$f":"COUNT(D25:O25)","v":0}]
["Calico Ninmah Wai-Wad","CZ","Kutiová",null,null,null,null,null,null,null,null,null,null,null,null,{"$f":"SUM(D26:O26)","v":0},null,{"$f":"COUNT(D26:O26)","v":0}]
[]
["PES SENIOR"]
["Izzy Putimská brána ","CZ","Nevěčná",null,null,"DISM",null,null,null,null,null,null,null,null,null,{"$f":"SUM(D29:O29)","v":0}," ",{"$f":"COUNT(D29:O29)","v":0}]
["Litlar´s Niju Zhar Plamya","CZ","Halenková",null,null,null,null,null,null,null,null,null,null,null,null,{"$f":"SUM(D30:O30)","v":0}," ",{"$f":"COUNT(D30:O30)","v":0}]
[null,null,null,null,null,null,null,null,null,null,null,null,null,null,null,{"$f":"SUM(D31:O31)","v":0}," ",{"$f":"COUNT(D31:O31)","v":0}]

{"sheet":"Ibizský podenco","index":10,"n_rows":15,"n_cols":18,"rows_kept":15,"cut":false,"hidden":false,"merged":[[0,15,2,15],[0,16,2,16],[0,17,2,17]]}
[null,null,null,"19.4.","26.4.","1.5.","10.5.","28.6.","5.7.","13.7.","2.8.","30.8.","13.9.","4.10.","18.10.","součet","body započítávané do soutěže","počet závodů"]
["IBIZSKÝ PODENCO",null,null,"Kolín","Lednice","Lednice","Kolín","Lednice","Lednice","Kolín","Kolín","Kolín","Lednice","Kolín","Lednice"]
["jméno psa","země","majitel",1,2,3,4,5,6,7,8,9,10,11,12]
["PES"]
["Primal Hound´s Aalto Solace of Kuraokami","CZ","Halenková",3,null,4,3,null,null,null,null,null,null,null,null,{"$f":"SUM(D5:O5)","v":10},null,{"$f":"COUNT(D5:O5)","v":3}]
["Eryx de Entresaltos","CZ","Halenková",4,null,2,2,null,null,null,null,null,null,null,null,{"$f":"SUM(D6:O6)","v":8},null,3]
["Fenix de Entersaltos","CZ","Halenková",2,null,3,1,null,null,null,null,null,null,null,null,{"$f":"SUM(D7:O7)","v":6},null,3]
["Gallardo de Entersaltos","CZ","Halenková","DISQ",null,"DISQ",null,null,null,null,null,null,null,null,null,{"$f":"SUM(D8:O8)","v":0},null,0]
[]
["FENA"]
["Daernerys Diabla, ex domo If´ Oras","CZ","Kutiová",null,null,null,null,null,null,null,null,null,null,null,null,{"$f":"SUM(D11:O11)","v":0},null,{"$f":"COUNT(D11:O11)","v":0}]
[]
[]
["SENIOR PES"]
["Cazaion Esperado","CZ","Halenková",1,null,"DISM",null,null,null,null,null,null,null,null,null,{"$f":"SUM(D15:O15)","v":1},null,{"$f":"COUNT(D15:O15)","v":1}]

{"sheet":"Kanárský podenco","index":11,"n_rows":12,"n_cols":18,"rows_kept":12,"cut":false,"hidden":false,"merged":[[0,15,2,15],[0,16,2,16],[0,17,2,17]]}
[null,null,null,"19.4.","26.4.","1.5.","10.5.","28.6.","5.7.","13.7.","2.8.","30.8.","13.9.","4.10.","18.10.","součet","body započítávané do soutěže","počet závodů"]
["KANÁRSKÝ PODENCO",null,null,"Kolín","Lednice","Lednice","Kolín","Lednice","Lednice","Kolín","Kolín","Kolín","Lednice","Kolín","Lednice"]
["jméno psa","země","majitel",1,2,3,4,5,6,7,8,9,10,11,12]
["PES"]
[null,null,null,null,null,null,null,null,null,null,null,null,null,null,null,{"$f":"SUM(D5:O5)","v":0}," ",{"$f":"COUNT(D5:O5)","v":0}]
[null,null,null,null,null,null,null,null,null,null,null,null,null,null,null,{"$f":"SUM(D6:O6)","v":0}," ",{"$f":"COUNT(D6:O6)","v":0}]
[null,null,null,null,null,null,null,null,null,null,null,null,null,null,null,{"$f":"SUM(D7:O7)","v":0}," ",{"$f":"COUNT(D7:O7)","v":0}]
[]
["FENA"]
[null,null,null,null,null,null,null,null,null,null,null,null,null,null,null,{"$f":"SUM(D10:O10)","v":0}," ",{"$f":"COUNT(D10:O10)","v":0}]
[null,null,null,null,null,null,null,null,null,null,null,null,null,null,null,{"$f":"SUM(D11:O11)","v":0}," ",{"$f":"COUNT(D11:O11)","v":0}]
[null,null,null,null,null,null,null,null,null,null,null,null,null,null,null,{"$f":"SUM(D12:O12)","v":0}," ",{"$f":"COUNT(D12:O12)","v":0}]

{"sheet":"sicilský chrt","index":12,"n_rows":23,"n_cols":18,"rows_kept":23,"cut":false,"hidden":false,"merged":[[0,15,2,15],[0,16,2,16],[0,17,2,17]]}
[null,null,null,"19.4.","26.4.","1.5.","10.5.","28.6.","5.7.","13.7.","2.8.","30.8.","13.9.","4.10.","18.10.","součet","body započítávané do soutěže","počet závodů"]
["SICILSKÝ CHRT",null,null,"Kolín","Lednice","Lednice","Kolín","Lednice","Lednice","Kolín","Kolín","Kolín","Lednice","Kolín","Lednice"]
["jméno psa","země","majitel",1,2,3,4,5,6,7,8,9,10,11,12]
["PES"]
["Orion Silvento","CZ","Koláčková",null,null,null,null,null,null,null,null,null,null,null,null,{"$f":"SUM(D5:O5)","v":0},null,{"$f":"COUNT(D5:O5)","v":0}]
[null,null,null,null,null,null,null,null,null,null,null,null,null,null,null,{"$f":"SUM(D6:O6)","v":0},null,{"$f":"COUNT(D6:O6)","v":0}]
[null,null,null,null,null,null,null,null,null,null,null,null,null,null,null,{"$f":"SUM(D7:O7)","v":0},null,{"$f":"COUNT(D7:O7)","v":0}]
[]
["FENA"]
["Camara Rheia Wai Wad","CZ","Kutiová",null,null,null,null,null,null,null,null,null,null,null,null,{"$f":"SUM(D10:O10)","v":0},null,{"$f":"COUNT(D10:O10)","v":0}]
[null,null,null,null,null,null,null,null,null,null,null,null,null,null,null,{"$f":"SUM(D11:O11)","v":0},null,{"$f":"COUNT(D11:O11)","v":0}]
[null,null,null,null,null,null,null,null,null,null,null,null,null,null,null,{"$f":"SUM(D12:O12)","v":0}," ",{"$f":"COUNT(D12:O12)","v":0}]
[null,null,null,null,null,null,null,null,null,null,null,null,null,null,null,{"$f":"SUM(D13:O13)","v":0}," ",{"$f":"COUNT(D13:O13)","v":0}]
[]
["SENIOR PES"]
["Belenus Benu Wai Wad","CZ","Kutiová",null,null,null,null,null,null,null,null,null,null,null,null,{"$f":"SUM(D16:O16)","v":0}," ",{"$f":"COUNT(D16:O16)","v":0}]
[null,null,null,null,null,null,null,null,null,null,null,null,null,null,null,{"$f":"SUM(D17:O17)","v":0}," ",{"$f":"COUNT(D17:O17)","v":0}]
[null,null,null,null,null,null,null,null,null,null,null,null,null,null,null,{"$f":"SUM(D18:O18)","v":0}," ",{"$f":"COUNT(D18:O18)","v":0}]
[]
["SENIOR FENA"]
["Bía Balor Wai-Wad","CZ","Kutiová",null,null,null,null,null,null,null,null,null,null,null,null,{"$f":"SUM(D21:O21)","v":0}," ",{"$f":"COUNT(D21:O21)","v":0}]
["Buri Birdu Wai-Wad","CZ","Janouchová",null,null,null,null,null,null,null,null,null,null,null,null,{"$f":"SUM(D22:O22)","v":0}," ",{"$f":"COUNT(D22:O22)","v":0}]
[null,null,null,null,null,null,null,null,null,null,null,null,null,null,null,{"$f":"SUM(D23:O23)","v":0}," ",{"$f":"COUNT(D23:O23)","v":0}]

{"sheet":"dlouhosrstý vipet","index":13,"n_rows":34,"n_cols":18,"rows_kept":34,"cut":false,"hidden":false,"merged":[[0,15,2,15],[0,16,2,16],[0,17,2,17]]}
[null,null,null,"19.4.","26.4.","1.5.","10.5.","28.6.","5.7.","13.7.","2.8.","30.8.","13.9.","4.10.","18.10.","součet","body započítávané do soutěže","počet závodů"]
["DLOUHOSRSTÝ VIPET",null,null,"Kolín","Lednice","Lednice","Kolín","Lednice","Lednice","Kolín","Kolín","Kolín","Lednice","Kolín","Lednice"]
["jméno psa","země","majitel",1,2,3,4,5,6,7,8,9,10,11,12]
["PES"]
["Cypress Absolute Original","CZ","Skřivánková",3,null,null,5,null,null,null,null,null,null,null,null,{"$f":"SUM(D5:O5)","v":8},null,{"$f":"COUNT(D5:O5)","v":2}]
["Leikur von Krefting","CZ","Reisová",null,2,4,null,null,null,null,null,null,null,null,null,{"$f":"SUM(D6:O6)","v":6},null,{"$f":"COUNT(D6:O6)","v":2}]
["Talisman vom Schwarzen Schwan","CZ","Reisová",null,1,3,null,null,null,null,null,null,null,null,null,{"$f":"SUM(D7:O7)","v":4},null,{"$f":"COUNT(D7:O7)","v":2}]
["Gump Verona Sunrise","CZ","Horváth",1,null,null,2,null,null,null,null,null,null,null,null,{"$f":"SUM(D8:O8)","v":3},null,{"$f":"COUNT(D8:O8)","v":2}]
[null,null,null,null,null,null,null,null,null,null,null,null,null,null,null,{"$f":"SUM(D9:O9)","v":0},null,{"$f":"COUNT(D9:O9)","v":0}]
[null,null,null,null,null,null,null,null,null,null,null,null,null,null,null,0,null,0]
[]
["FENA"]
["Amazing Nessie Razy Levah","CZ","Wieznerová",4,null,5,6,null,null,null,null,null,null,null,null,{"$f":"SUM(D13:O13)","v":15},null,{"$f":"COUNT(D13:O13)","v":3}]
["Eclipse Silken Magic Andromeda Terra","HU","Simon",null,null,6,7,null,null,null,null,null,null,null,null,13,null,2]
["Gloria Verona Sunrise","CZ","Koucký",null,null,2,3,null,null,null,null,null,null,null,null,5,null,2]
["Honey Verona Sunrise","CZ","Koucká",null,null,1,4,null,null,null,null,null,null,null,null,5,null,2]
["Bathlea Star of Andromeda Terra","CZ","Bazalová",2,null,null,1,null,null,null,null,null,null,null,null,3,null,2]
["Queen Beatrix Beami Sahrak, Beami Sahrak","CZ","Dudová",null,null,null,null,null,null,null,null,null,null,null,null,0,null,0]
[null,null,null,null,null,null,null,null,null,null,null,null,null,null,null,0,null,0]
[null,null,null,null,null,null,null,null,null,null,null,null,null,null,null,0,null,0]
[null,null,null,null,null,null,null,null,null,null,null,null,null,null,null,0,null,0]
[null,null,null,null,null,null,null,null,null,null,null,null,null,null,null,0,null,0]
["Bella Star of Andromeda Terra","CZ","Uhrová",null,null,null,null,null,null,null,null,null,null,null,null,0,null,0]
[null,null,null,null,null,null,null,null,null,null,null,null,null,null,null,0,null,0]
[]
["SENIOR PES"]
["Quartz Beami Sahrak","CZ","Skřivánková",2,null,null,2,null,null,null,null,null,null,null,null,{"$f":"SUM(D27:O27)","v":4},null,{"$f":"COUNT(D27:O27)","v":2}]
["Falco Verona Sunrise","CZ","Horváth",1,null,null,1,null,null,null,null,null,null,null,null,{"$f":"SUM(D28:O28)","v":2},null,{"$f":"COUNT(D28:O28)","v":2}]
[]
["SENIOR FENA"]
["Afalda Princess of Andromeda","CZ","Uhrová",3,null,null,3,null,null,null,null,null,null,null,null,{"$f":"SUM(D31:O31)","v":6},null,{"$f":"COUNT(D31:O31)","v":2}]
[null,null,null,null,null,null,null,null,null,null,null,null,null,null,null,{"$f":"SUM(D32:O32)","v":0},null,{"$f":"COUNT(D32:O32)","v":0}]
[null,null,null,null,null,null,null,null,null,null,null,null,null,null,null,{"$f":"SUM(D33:O33)","v":0}," ",{"$f":"COUNT(D33:O33)","v":0}]
[null,null,null,null,null,null,null,null,null,null,null,null,null,null,null,{"$f":"SUM(D34:O34)","v":0}," ",{"$f":"COUNT(D34:O34)","v":0}]

{"sheet":"Deerhound","index":14,"n_rows":15,"n_cols":18,"rows_kept":15,"cut":false,"hidden":false,"merged":[[0,15,2,15],[0,16,2,16],[0,17,2,17]]}
[null,null,null,"19.4.","26.4.","1.5.","10.5.","28.6.","5.7.","13.7.","2.8.","30.8.","13.9.","4.10.","18.10.","součet","body započítávané do soutěže","počet závodů"]
["DEERHOUND",null,null,"Kolín","Lednice","Lednice","Kolín","Lednice","Lednice","Kolín","Kolín","Kolín","Lednice","Kolín","Lednice"]
["jméno psa","země","majitel",1,2,3,4,5,6,7,8,9,10,11,12]
["PES"]
[null,null,null,null,null,null,null,null,null,null,null,null,null,null,null,{"$f":"SUM(D5:O5)","v":0}," ",{"$f":"COUNT(D5:O5)","v":0}]
[null,null,null,null,null,null,null,null,null,null,null,null,null,null,null,{"$f":"SUM(D6:O6)","v":0}," ",{"$f":"COUNT(D6:O6)","v":0}]
[null,null,null,null,null,null,null,null,null,null,null,null,null,null,null,{"$f":"SUM(D7:O7)","v":0}," ",{"$f":"COUNT(D7:O7)","v":0}]
[null,null,null,null,null,null,null,null,null,null,null,null,null,null,null,{"$f":"SUM(D8:O8)","v":0}," ",{"$f":"COUNT(D8:O8)","v":0}]
[null,null,null,null,null,null,null,null,null,null,null,null,null,null,null,{"$f":"SUM(D9:O9)","v":0}," ",{"$f":"COUNT(D9:O9)","v":0}]
[]
["FENA"]
["Aisha Under Sharp Hill","CZ","Jahelková",null,null,null,null,null,null,null,null,null,null,null,null,{"$f":"SUM(D12:O12)","v":0}," ",{"$f":"COUNT(D12:O12)","v":0}]
["Ailis Under Sharp Hill","CZ","Jahelková",null,null,null,null,null,null,null,null,null,null,null,null,0," ",0]
["CandyCrush Under Sharp Hill","CZ","Jahelková",null,null,null,null,null,null,null,null,null,null,null,null,0," ",0]
["Electra Under Sharp Hill","CZ","Jahelková",null,null,null,null,null,null,null,null,null,null,null,null,0," ",0]

{"sheet":"Greyhound","index":15,"n_rows":24,"n_cols":18,"rows_kept":24,"cut":false,"hidden":false,"merged":[[0,15,2,15],[0,16,2,16],[0,17,2,17]]}
[null,null,null,"19.4.","26.4.","1.5.","10.5.","28.6.","5.7.","13.7.","2.8.","30.8.","13.9.","4.10.","18.10.","součet","body započítávané do soutěže","počet závodů"]
["GREYHOUND",null,null,"Kolín","Lednice","Lednice","Kolín","Lednice","Lednice","Kolín","Kolín","Kolín","Lednice","Kolín","Lednice"]
["jméno psa","země","majitel",1,2,3,4,5,6,7,8,9,10,11,12]
["PES"]
["Chanson Jumping Jet","cz","Schejbal",1,1,1,null,null,null,null,null,null,null,null,null,{"$f":"SUM(D5:O5)","v":3},null,{"$f":"COUNT(D5:O5)","v":3}]
[null,null,null,null,null,null,null,null,null,null,null,null,null,null,null,{"$f":"SUM(D6:O6)","v":0}," ",{"$f":"COUNT(D6:O6)","v":0}]
[null,null,null,null,null,null,null,null,null,null,null,null,null,null,null,{"$f":"SUM(D7:O7)","v":0}," ",{"$f":"COUNT(D7:O7)","v":0}]
[null,null,null,null,null,null,null,null,null,null,null,null,null,null,null,{"$f":"SUM(D8:O8)","v":0}," ",{"$f":"COUNT(D8:O8)","v":0}]
[]
["FENA "]
[null,null,null,null,null,null,null,null,null,null,null,null,null,null,null,{"$f":"SUM(D11:O11)","v":0}," ",{"$f":"COUNT(D11:O11)","v":0}]
[null,null,null,null,null,null,null,null,null,null,null,null,null,null,null,0," ",0]
[null,null,null,null,null,null,null,null,null,null,null,null,null,null,null,0," ",0]
[null,null,null,null,null,null,null,null,null,null,null,null,null,null,null,0," ",0]
[null,null,null,null,null,null,null,null,null,null,null,null,null,null,null,0," ",0]
[null,null,null,null,null,null,null,null,null,null,null,null,null,null,null,0," ",0]
[]
["FENA SENIOR"]
[null,null,null,null,null,null,null,null,null,null,null,null,null,null,null,{"$f":"SUM(D19:O19)","v":0}," ",{"$f":"COUNT(D19:O19)","v":0}]
[null,null,null,null,null,null,null,null,null,null,null,null,null,null,null,0," ",0]
[null,null,null,null,null,null,null,null,null,null,null,null,null,null,null,0," ",0]
[null,null,null,null,null,null,null,null,null,null,null,null,null,null,null,0," ",0]
[null,null,null,null,null,null,null,null,null,null,null,null,null,null,null,0," ",0]
[null,null,null,null,null,null,null,null,null,null,null,null,null,null,null,0," ",0]

{"sheet":"Irský vlkodav","index":16,"n_rows":14,"n_cols":18,"rows_kept":14,"cut":false,"hidden":false,"merged":[[0,15,2,15],[0,16,2,16],[0,17,2,17]]}
[null,null,null,"19.4.","26.4.","1.5.","10.5.","28.6.","5.7.","13.7.","2.8.","30.8.","13.9.","4.10.","18.10.","součet","body započítávané do soutěže","počet závodů"]
["IRSKÝ VLKODAV",null,null,"Kolín","Lednice","Lednice","Kolín","Lednice","Lednice","Kolín","Kolín","Kolín","Lednice","Kolín","Lednice"]
["jméno psa","země","majitel",1,2,3,4,5,6,7,8,9,10,11,12]
["PES"]
[null,null,null,null,null,null,null,null,null,null,null,null,null,null,null,{"$f":"SUM(D5:O5)","v":0}," ",{"$f":"COUNT(D5:O5)","v":0}]
[null,null,null,null,null,null,null,null,null,null,null,null,null,null,null,{"$f":"SUM(D6:O6)","v":0}," ",{"$f":"COUNT(D6:O6)","v":0}]
[null,null,null,null,null,null,null,null,null,null,null,null,null,null,null,{"$f":"SUM(D7:O7)","v":0}," ",{"$f":"COUNT(D7:O7)","v":0}]
[null,null,null,null,null,null,null,null,null,null,null,null,null,null,null,{"$f":"SUM(D8:O8)","v":0}," ",{"$f":"COUNT(D8:O8)","v":0}]
[]
["FENA"]
[null,null,null,null,null,null,null,null,null,null,null,null,null,null,null,{"$f":"SUM(D11:O11)","v":0}," ",{"$f":"COUNT(D11:O11)","v":0}]
[null,null,null,null,null,null,null,null,null,null,null,null,null,null,null,{"$f":"SUM(D12:O12)","v":0}," ",{"$f":"COUNT(D12:O12)","v":0}]
[null,null,null,null,null,null,null,null,null,null,null,null,null,null,null,{"$f":"SUM(D13:O13)","v":0}," ",{"$f":"COUNT(D13:O13)","v":0}]
[null,null,null,null,null,null,null,null,null,null,null,null,null,null,null,{"$f":"SUM(D14:O14)","v":0}," ",{"$f":"COUNT(D14:O14)","v":0}]

{"sheet":"Polský chrt","index":17,"n_rows":15,"n_cols":18,"rows_kept":15,"cut":false,"hidden":false,"merged":[[0,15,2,15],[0,16,2,16],[0,17,2,17]]}
[null,null,null,"19.4.","26.4.","1.5.","10.5.","28.6.","5.7.","13.7.","2.8.","30.8.","13.9.","4.10.","18.10.","součet","body započítávané do soutěže","počet závodů"]
["POLSKÝ CHRT",null,null,"Kolín","Lednice","Lednice","Kolín","Lednice","Lednice","Kolín","Kolín","Kolín","Lednice","Kolín","Lednice"]
["jméno psa","země","majitel",1,2,3,4,5,6,7,8,9,10,11,12]
["PES"]
[null,null,null,null,null,null,null,null,null,null,null,null,null,null,null,{"$f":"SUM(D5:O5)","v":0}," ",{"$f":"COUNT(D5:O5)","v":0}]
[null,null,null,null,null,null,null,null,null,null,null,null,null,null,null,{"$f":"SUM(D6:O6)","v":0}," ",{"$f":"COUNT(D6:O6)","v":0}]
[null,null,null,null,null,null,null,null,null,null,null,null,null,null,null,{"$f":"SUM(D7:O7)","v":0}," ",{"$f":"COUNT(D7:O7)","v":0}]
[null,null,null,null,null,null,null,null,null,null,null,null,null,null,null,{"$f":"SUM(D8:O8)","v":0}," ",{"$f":"COUNT(D8:O8)","v":0}]
[null,null,null,null,null,null,null,null,null,null,null,null,null,null,null,{"$f":"SUM(D9:O9)","v":0}," ",{"$f":"COUNT(D9:O9)","v":0}]
[]
["FENA"]
["Anuszka Divinacanis","PL","Rownicki",null,null,null,2,null,null,null,null,null,null,null,null,{"$f":"SUM(D12:O12)","v":2}," ",{"$f":"COUNT(D12:O12)","v":1}]
["Lizus Boccadoro Priboj","PL","Sobiech",null,null,null,1,null,null,null,null,null,null,null,null,{"$f":"SUM(D13:O13)","v":1}," ",{"$f":"COUNT(D13:O13)","v":1}]
[null,null,null,null,null,null,null,null,null,null,null,null,null,null,null,{"$f":"SUM(D14:O14)","v":0}," ",{"$f":"COUNT(D14:O14)","v":0}]
[null,null,null,null,null,null,null,null,null,null,null,null,null,null,null,{"$f":"SUM(D15:O15)","v":0}," ",{"$f":"COUNT(D15:O15)","v":0}]

{"sheet":"Maďarský chrt","index":18,"n_rows":16,"n_cols":18,"rows_kept":16,"cut":false,"hidden":false,"merged":[[0,15,2,15],[0,16,2,16],[0,17,2,17]]}
[null,null,null,"19.4.","26.4.","1.5.","10.5.","28.6.","5.7.","13.7.","2.8.","30.8.","13.9.","4.10.","18.10.","součet","body započítávané do soutěže","počet závodů"]
["MAĎARSKÝ CHRT",null,null,"Kolín","Lednice","Lednice","Kolín","Lednice","Lednice","Kolín","Kolín","Kolín","Lednice","Kolín","Lednice"]
["jméno psa","země","majitel",1,2,3,4,5,6,7,8,9,10,11,12]
["PES"]
[null,null,null,null,null,null,null,null,null,null,null,null,null,null,null,{"$f":"SUM(D5:O5)","v":0}," ",{"$f":"COUNT(D5:O5)","v":0}]
[null,null,null,null,null,null,null,null,null,null,null,null,null,null,null,{"$f":"SUM(D6:O6)","v":0}," ",{"$f":"COUNT(D6:O6)","v":0}]
[null,null,null,null,null,null,null,null,null,null,null,null,null,null,null,{"$f":"SUM(D7:O7)","v":0}," ",{"$f":"COUNT(D7:O7)","v":0}]
[null,null,null,null,null,null,null,null,null,null,null,null,null,null,null,{"$f":"SUM(D8:O8)","v":0}," ",{"$f":"COUNT(D8:O8)","v":0}]
[null,null,null,null,null,null,null,null,null,null,null,null,null,null,null,{"$f":"SUM(D9:O9)","v":0}," ",{"$f":"COUNT(D9:O9)","v":0}]
[]
["FENA"]
[null,null,null,null,null,null,null,null,null,null,null,null,null,null,null,{"$f":"SUM(D12:O12)","v":0}," ",{"$f":"COUNT(D12:O12)","v":0}]
[null,null,null,null,null,null,null,null,null,null,null,null,null,null,null,{"$f":"SUM(D13:O13)","v":0}," ",{"$f":"COUNT(D13:O13)","v":0}]
[null,null,null,null,null,null,null,null,null,null,null,null,null,null,null,{"$f":"SUM(D14:O14)","v":0}," ",{"$f":"COUNT(D14:O14)","v":0}]
[null,null,null,null,null,null,null,null,null,null,null,null,null,null,null,{"$f":"SUM(D15:O15)","v":0}," ",{"$f":"COUNT(D15:O15)","v":0}]
[null,null,null,null,null,null,null,null,null,null,null,null,null,null,null,{"$f":"SUM(D16:O16)","v":0}," ",{"$f":"COUNT(D16:O16)","v":0}]